fUST/lending_fUST_20260116
["ID","MTS","AMOUNT","RATE_DAILY","PERIOD"]
[402141208,1768551038646,-1245.1826708,0.00014119,2]
[402141209,1768551038656,-100000.0,0.00014152,2]
[402141210,1768551038666,-406.324519,0.00014198,2]
[402141211,1768551038676,-600.0,0.00014221,2]
[402141212,1768551038686,-500.0,0.00014246,2]
[402141213,1768551038696,-505.35037186,0.00014247,2]
[402141214,1768551038707,-920.73215922,0.00014247,2]
[402141215,1768551038716,-1002.84499725,0.00014247,2]
[402141216,1768551038726,-1000.0,0.00014247,2]
[402141217,1768551038735,-1000.0,0.00014247,2]
[402141218,1768551038746,-431.73453214,0.00014247,2]
[402141219,1768551038756,-1000.0,0.00014247,2]
[402141220,1768551038766,-1000.0,0.00014247,2]
[402141221,1768551038776,-1000.0,0.00014247,2]
[402141222,1768551038786,-194.1362209,0.00014247,2]
[402141223,1768551038796,-1000.0,0.00014247,2]
[402141224,1768551038806,-500.43334725,0.00014247,2]
[402141225,1768551038816,-1000.0,0.00014247,2]
[402141226,1768551038826,-310.63775509,0.00014247,2]
[402141227,1768551038835,-250.0,0.00014247,2]
[402141228,1768551038846,-1000.0,0.00014247,2]
[402141229,1768551038855,-502.90945713,0.00014247,2]
[402141230,1768551038865,-151.0,0.000143,2]
[402141231,1768551038875,-1500.0,0.00014368,2]
[402141232,1768551038888,-502.83955258,0.00014368,2]
[402141233,1768551038898,-250.42510646,0.00014393,2]
[402141234,1768551038908,-823.0,0.00014477,2]
[402141235,1768551038919,-5000.0,0.0001451,2]
[402141236,1768551038928,-151.0,0.000147,2]
[402141237,1768551038938,-3448.09,0.00014761,2]
[402141238,1768551038948,-303.86573033,0.00014768,2]
[402141239,1768551038958,-1500.0,0.00014795,2]
[402141240,1768551038968,-1500.0,0.00014795,2]
[402141241,1768551038978,-1201.29172815,0.00014795,2]
[402141242,1768551038988,-1500.0,0.00014795,2]
[402141243,1768551038999,-243.42946379,0.00014795,2]
[402141244,1768551039008,-1500.0,0.00014795,2]
[402141245,1768551039019,-201.20977606,0.00014795,2]
[402141246,1768551039029,-1500.0,0.00014795,2]
[402141247,1768551039040,-504.04282277,0.00014916,2]
[402141248,1768551039050,-1000.0,0.00015078,2]
[402141249,1768551039060,-457.52132197,0.000152,2]
[402141250,1768551039070,-151.0,0.000152,2]
[402141251,1768551039080,-406.324519,0.00015311,2]
[402141252,1768551039090,-891.24466261,0.00015342,2]
[402141253,1768551039099,-606.16105087,0.00015342,2]
[402141254,1768551039109,-2066.58649571,0.00015342,2]
[402141255,1768551039119,-2000.0,0.00015342,2]
[402141256,1768551039129,-500.0,0.00015342,2]
[402141257,1768551039139,-1500.0,0.000154,2]
[402141258,1768551039148,-1753.572191,0.000154,2]
[402141259,1768551039158,-641.08426854,0.000154,2]
[402141260,1768551039167,-349.77411044,0.000154,2]
[402141261,1768551039178,-152.50710732,0.000154,2]
[402141262,1768551039187,-457.52132197,0.00015511,5]
[402141263,1768551039198,-2881.85846392,0.00015556,2]
[402141264,1768551039208,-3879.1,0.00015581,2]
[402141265,1768551039218,-151.0,0.000156,2]
[402141266,1768551039227,-255.42950483,0.00015723,2]
[402141267,1768551039237,-901.60735931,0.00015749,30]
[402141268,1768551039247,-523.05675553,0.00015749,30]
[402141269,1768551039257,-500.0,0.00015749,30]
[402141270,1768551039267,-500.0,0.00015749,30]
[402141271,1768551039277,-500.0,0.00015749,30]
[402141272,1768551039288,-499.3,0.00015749,30]
[402141273,1768551039298,-500.0,0.00015749,30]
[402141274,1768551039308,-500.0,0.00015749,30]
[402141275,1768551039319,-500.0,0.00015749,30]
[402141276,1768551039329,-500.0,0.00015749,30]
[402141277,1768551039339,-500.0,0.00015749,30]
[402141278,1768551039350,-500.0,0.00015749,30]
[402141279,1768551039360,-500.0,0.00015749,30]
[402141280,1768551039370,-500.0,0.00015749,30]
[402141281,1768551039380,-500.0,0.00015749,30]
[402141282,1768551039390,-500.0,0.00015749,30]
[402141283,1768551039401,-500.0,0.00015749,30]
[402141284,1768551039412,-500.0,0.00015749,30]
[402141285,1768551039422,-500.0,0.00015749,30]
[402141286,1768551039431,-500.0,0.00015749,30]
[402141287,1768551039442,-791.6929879,0.00015749,30]
[402141288,1768551039452,-500.0,0.00015749,30]
[402141289,1768551039462,-190.0,0.00015749,30]
[402141290,1768551039471,-500.0,0.00015749,30]
[402141291,1768551039482,-500.0,0.00015749,30]
[402141292,1768551039492,-500.0,0.00015749,30]
[402141293,1768551039502,-500.0,0.00015749,30]
[402141294,1768551039511,-500.0,0.00015749,30]
[402141295,1768551039521,-500.0,0.00015749,30]
[402141296,1768551039531,-500.0,0.00015749,30]
[402141297,1768551039541,-500.0,0.00015749,30]
[402141298,1768551039550,-500.0,0.00015749,30]
[402141299,1768551039560,-500.0,0.00015749,30]
[402141300,1768551039570,-500.0,0.00015749,30]
[402141301,1768551039579,-500.0,0.00015749,30]
[402141302,1768551039589,-500.0,0.00015749,30]
[402141303,1768551039599,-499.3,0.00015749,30]
[402141304,1768551039608,-500.0,0.00015749,30]
[402141305,1768551039618,-500.0,0.00015749,30]
[402141306,1768551039628,-500.0,0.00015749,30]
[402141307,1768551039637,-457.52132197,0.00015822,9]
[402141308,1768551039647,-2500.0,0.0001589,2]
[402141309,1768551039656,-1152.0,0.0001591,2]
[402141310,1768551039666,-500.0,0.00015989,2]
[402141311,1768551039675,-500.0,0.00015989,2]
[402141312,1768551039685,-500.0,0.00015989,2]
[402141313,1768551039695,-500.0,0.00015989,2]
[402141314,1768551039704,-500.0,0.00015989,2]
[402141315,1768551039714,-3000.0,0.00016,2]
[402141316,1768551039723,-3000.0,0.0001601,2]
[402141318,1768551039732,-4686.988972,0.0001602,2]
[402141319,1768551039742,-641.08426854,0.0001603,9]
[402141320,1768551039752,-349.77411044,0.0001603,9]
[402141321,1768551039761,-500.0,0.00016031,2]
[402141322,1768551039771,-151.0,0.000161,2]
[402141323,1768551039781,-151.0,0.000161,2]
[402141324,1768551039790,-457.52132197,0.00016134,13]
[402141325,1768551039800,-151.0,0.000164,2]
[402141326,1768551039810,-4310.11,0.00016401,2]
[402141327,1768551039820,-406.324519,0.00016425,2]
[402141328,1768551039829,-500.0,0.00016438,2]
[402141329,1768551039838,-333.4598592,0.00016438,2]
[402141330,1768551039848,-184.59,0.0001644,2]
[402141331,1768551039859,-457.52132197,0.00016445,16]
[402141332,1768551039868,-500.0,0.00016524,2]
[402141333,1768551039878,-500.0,0.00016524,2]
[402141334,1768551039888,-500.0,0.00016524,2]
[402141335,1768551039897,-500.0,0.00016524,2]
[402141336,1768551039907,-500.0,0.00016524,2]
[402141338,1768551039917,-500.0,0.00016524,2]
[402141340,1768551039926,-500.0,0.00016524,2]
[402141342,1768551039937,-500.0,0.00016524,2]
[402141343,1768551039947,-500.0,0.00016524,2]
[402141345,1768551039956,-500.0,0.00016524,2]
[402141354,1768551040318,-500.0,0.00016524,2]
[402141356,1768551040328,-500.0,0.00016524,2]
[402141358,1768551040338,-500.0,0.00016524,2]
[402141359,1768551040348,-500.0,0.00016524,2]
[402141361,1768551040358,-500.0,0.00016524,2]
[402141363,1768551040368,-500.0,0.00016524,2]
[402141364,1768551040378,-500.0,0.00016524,2]
[402141365,1768551040387,-500.0,0.00016524,2]
[402141366,1768551040397,-500.0,0.00016524,2]
[402141367,1768551040411,-500.0,0.00016524,2]
[402141368,1768551040421,-500.0,0.00016524,2]
[402141369,1768551040430,-244.5644873,0.00016524,2]
[402141370,1768551040441,-151.0,0.00016525,2]
[402141371,1768551040453,-1041.66666667,0.00016529,2]
[402141372,1768551040462,-1000.0,0.00016586,2]
[402141373,1768551040472,-244.0,0.00016586,2]
[402141374,1768551040483,-641.08426854,0.00016661,17]
[402141375,1768551040493,-349.77411044,0.00016661,17]
[402141376,1768551040506,-457.52132197,0.00016756,20]
[402141377,1768551040517,-1204.24,0.00016768,2]
[402141378,1768551040526,-1204.24,0.00016768,2]
[402141379,1768551040536,-1204.24,0.00016768,2]
[402141380,1768551040546,-151.0,0.000168,2]
[402141382,1768551040556,-500.0,0.00016866,2]
[402141383,1768551040565,-500.0,0.00016866,2]
[402141384,1768551040575,-525.74690785,0.00016866,2]
[402141385,1768551040585,-1204.24,0.00016868,2]
[402141386,1768551040595,-1204.24,0.00016868,2]
[402141387,1768551040604,-2300.629809,0.00016868,7]
[402141388,1768551040614,-457.52132197,0.00017067,24]
[402141389,1768551040623,-151.0,0.000171,2]
[402141390,1768551040633,-641.08426854,0.00017291,25]
[402141391,1768551040642,-349.77411044,0.00017291,25]
[402141392,1768551040652,-5775.092497,0.00017291,7]
[402141393,1768551040662,-457.52132197,0.00017378,28]
[402141394,1768551040671,-151.0,0.000174,2]
[402141395,1768551040681,-171.0,0.00017486,2]
[402141396,1768551040691,-457.52132197,0.0001769,31]
[402141397,1768551040700,-285.28490149,0.00017723,2]
[402141398,1768551040709,-1204.24,0.00017757,2]
[402141399,1768551040719,-3000.0,0.00017758,7]
[402141400,1768551040729,-5751.574523,0.00017758,7]
[402141401,1768551040739,-151.0,0.000178,2]
[402141402,1768551040748,-2881.85846392,0.00017904,2]
[402141403,1768551040758,-641.08426854,0.00017921,32]
[402141404,1768551040768,-349.77411044,0.00017921,32]
[402141405,1768551040777,-1204.24,0.00017936,2]
[402141406,1768551040787,-1204.24,0.00017936,2]
[402141407,1768551040796,-1204.24,0.00017936,2]
[402141408,1768551040805,-1204.24,0.00017936,2]
[402141409,1768551040815,-1204.24,0.00017936,2]
[402141410,1768551040825,-1204.24,0.00017936,2]
[402141411,1768551040834,-1204.24,0.00017936,2]
[402141412,1768551040844,-1204.24,0.00017937,2]
[402141413,1768551040854,-1204.24,0.00017939,2]
[402141414,1768551040863,-3728.04955627,0.00017945,2]
[402141415,1768551040873,-445.202766,0.00017945,2]
[402141416,1768551040883,-311.85701,0.00017945,2]
[402141417,1768551040893,-162.380719,0.00017945,2]
[402141418,1768551040903,-168.3888056,0.00017945,2]
[402141419,1768551040913,-151.0,0.00017945,2]
[402141420,1768551040924,-174.61919141,0.00017945,2]
[402141421,1768551040935,-151.0,0.00017945,2]
[402141422,1768551040945,-181.08010149,0.00017945,2]
[402141423,1768551040955,-2150.738,0.00017945,2]
[402141424,1768551040965,-151.0,0.00017945,2]
[402141425,1768551040975,-187.78006525,0.00017945,2]
[402141426,1768551040985,-151.0,0.00017945,2]
[402141427,1768551040996,-194.72792766,0.00017945,2]
[402141428,1768551041006,-151.0,0.00017945,2]
[402141429,1768551041017,-201.93286099,0.00017945,2]
[402141430,1768551041028,-151.0,0.00017945,2]
[402141431,1768551041037,-209.40437684,0.00017945,2]
[402141432,1768551041047,-151.0,0.00017945,2]
[402141433,1768551041056,-217.15233878,0.00017945,2]
[402141434,1768551041065,-30000.0,0.00017945,2]
[402141435,1768551041074,-151.0,0.00017945,2]
[402141436,1768551041083,-225.18697532,0.00017945,2]
[402141437,1768551041093,-151.0,0.00017945,2]
[402141438,1768551041102,-233.51889341,0.00017945,2]
[402141439,1768551041111,-154.24385772,0.00017945,2]
[402141440,1768551041121,-242.15909246,0.00017945,2]
[402141441,1768551041130,-251.11897888,0.00017945,2]
[402141442,1768551041140,-260.4103811,0.00017945,2]
[402141443,1768551041150,-270.0455652,0.00017945,2]
[402141444,1768551041159,-280.03725112,0.00017945,2]
[402141445,1768551041169,-290.39862941,0.00017945,2]
[402141446,1768551041178,-301.1433787,0.00017945,2]
[402141447,1768551041188,-457.52132197,0.00018001,35]
[402141448,1768551041198,-151.0,0.000181,2]
[402141449,1768551041207,-621.35825938,0.00018228,16]
[402141450,1768551041217,-1000.0,0.00018245,2]
[402141451,1768551041227,-492.0,0.00018245,2]
[402141452,1768551041237,-457.52132197,0.00018312,39]
[402141453,1768551041247,-14437.73124,0.00018312,7]
[402141454,1768551041256,-258.0,0.00018321,2]
[402141455,1768551041266,-157.771305,0.00018332,7]
[402141456,1768551041276,-258.0,0.00018339,2]
[402141457,1768551041285,-1204.24,0.00018398,2]
[402141458,1768551041295,-500.0,0.00018399,2]
[402141459,1768551041305,-500.0,0.00018399,2]
[402141460,1768551041314,-500.0,0.00018399,2]
[402141461,1768551041324,-500.0,0.00018399,2]
[402141462,1768551041333,-500.0,0.00018399,2]
[402141463,1768551041342,-200.37737228,0.00018399,2]
[402141464,1768551041351,-629.0,0.0001842,2]
[402141465,1768551041361,-2147.0,0.0001842,2]
[402141466,1768551041370,-1367.0,0.0001842,2]
[402141467,1768551041380,-715.0,0.0001842,2]
[402141468,1768551041389,-198.478,0.0001842,2]
[402141469,1768551041400,-417.0,0.0001842,2]
[402141470,1768551041413,-258.0,0.0001848,2]
[402141471,1768551041423,-1204.24,0.00018487,2]
[402141472,1768551041433,-1204.24,0.00018487,2]
[402141473,1768551041443,-242.353741,0.00018493,7]
[402141474,1768551041452,-323.39571937,0.00018493,2]
[402141475,1768551041462,-461.67526834,0.00018493,2]
[402141476,1768551041473,-2230.315306,0.00018493,2]
[402141477,1768551041483,-25428.91703477,0.00018493,2]
[402141478,1768551041493,-258.0,0.00018495,2]
[402141479,1768551041503,-151.0,0.000185,2]
[402141480,1768551041512,-621.35825938,0.00018512,18]
[402141481,1768551041522,-151.0,0.00018513,2]
[402141482,1768551041532,-500.0,0.00018536,2]
[402141483,1768551041542,-565.80108301,0.00018536,2]
[402141484,1768551041551,-500.0,0.00018536,2]
[402141485,1768551041562,-500.0,0.00018536,2]
[402141486,1768551041571,-500.0,0.00018536,2]
[402141487,1768551041581,-641.08426854,0.00018552,40]
[402141488,1768551041591,-349.77411044,0.00018552,40]
[402141489,1768551041600,-728.0,0.00018564,2]
[402141490,1768551041611,-258.0,0.00018565,2]
[402141491,1768551041620,-258.0,0.00018602,2]
[402141492,1768551041629,-1563.524219,0.00018602,7]
[402141493,1768551041639,-457.52132197,0.00018623,42]
[402141494,1768551041649,-177.916,0.0001863,2]
[402141495,1768551041658,-500.0,0.00018673,2]
[402141496,1768551041667,-288.0,0.00018673,2]
[402141497,1768551041677,-300.0,0.00018673,2]
[402141498,1768551041687,-500.0,0.00018673,2]
[402141499,1768551041697,-200.0,0.00018673,2]
[402141500,1768551041706,-1204.24,0.0001873,2]
[402141501,1768551041715,-1204.24,0.00018765,2]
[402141502,1768551041725,-1204.24,0.00018765,2]
[402141503,1768551041734,-1204.24,0.00018765,2]
[402141504,1768551041743,-1204.24,0.00018765,2]
[402141505,1768551041753,-1204.33791038,0.00018765,2]
[402141506,1768551041762,-621.35825938,0.00018795,19]
[402141507,1768551041772,-151.0,0.000188,2]
[402141508,1768551041781,-163.009381,0.0001881,7]
[402141509,1768551041791,-162.39275147,0.0001881,2]
[402141510,1768551041800,-500.0,0.0001881,2]
[402141511,1768551041810,-179.19406929,0.0001881,2]
[402141512,1768551041820,-250.0,0.0001881,2]
[402141513,1768551041829,-3000.0,0.00018854,7]
[402141514,1768551041839,-504.48406529,0.00018899,5]
[402141515,1768551041848,-303.10001603,0.000189,2]
[402141516,1768551041858,-457.52132197,0.00018934,46]
[402141517,1768551041868,-153.07544209,0.00018947,2]
[402141518,1768551041878,-500.0,0.00018947,2]
[402141519,1768551041889,-258.0,0.00018959,2]
[402141520,1768551041900,-258.0,0.0001897,2]
[402141521,1768551041909,-263.09536091,0.00018988,2]
[402141522,1768551041918,-258.0,0.0001899,2]
[402141523,1768551041928,-258.0,0.00019001,2]
[402141524,1768551041937,-422.02463319,0.00019041,2]
[402141525,1768551041947,-478.75725327,0.00019041,2]
[402141526,1768551041957,-2312.83697232,0.00019041,2]
[402141527,1768551041967,-151.0,0.00019043,2]
[402141528,1768551041976,-258.0,0.00019071,2]
[402141529,1768551041985,-244.514071,0.00019071,7]
[402141530,1768551041995,-621.35825938,0.00019078,20]
[402141531,1768551042004,-250.0,0.00019084,2]
[402141532,1768551042013,-500.0,0.00019084,2]
[402141533,1768551042022,-250.0,0.00019084,2]
[402141534,1768551042031,-180.0285874,0.00019084,2]
[402141535,1768551042041,-303.10001603,0.00019089,2]
[402141536,1768551042050,-151.0,0.000191,2]
[402141537,1768551042059,-258.0,0.00019121,2]
[402141538,1768551042069,-258.0,0.00019165,2]
[402141539,1768551042080,-605.884354,0.00019168,7]
[402141540,1768551042090,-3666.456807,0.00019168,7]
[402141541,1768551042099,-2536.6217,0.00019178,2]
[402141542,1768551042110,-1891.08,0.00019178,2]
[402141543,1768551042120,-330.55,0.00019178,2]
[402141544,1768551042130,-2500.0,0.00019178,2]
[402141545,1768551042139,-500.0,0.00019178,2]
[402141546,1768551042148,-1354.67,0.00019178,2]
[402141547,1768551042157,-1354.67,0.00019178,2]
[402141548,1768551042167,-1354.67,0.00019178,2]
[402141549,1768551042176,-1354.67,0.00019178,2]
[402141551,1768551042185,-1354.67,0.00019178,2]
[402141552,1768551042195,-1354.67,0.00019178,2]
[402141553,1768551042205,-1354.67,0.00019178,2]
[402141554,1768551042215,-1354.67,0.00019178,2]
[402141555,1768551042225,-1354.67,0.00019178,2]
[402141556,1768551042235,-1354.67,0.00019178,2]
[402141557,1768551042246,-1354.67,0.00019178,2]
[402141558,1768551042257,-1354.67,0.00019178,2]
[402141559,1768551042267,-1354.67,0.00019178,2]
[402141560,1768551042278,-1354.67,0.00019178,2]
[402141561,1768551042287,-1354.67,0.00019178,2]
[402141562,1768551042297,-1354.67,0.00019178,2]
[402141563,1768551042308,-1354.67,0.00019178,2]
[402141564,1768551042319,-1354.67,0.00019178,2]
[402141565,1768551042330,-1354.67,0.00019178,2]
[402141566,1768551042339,-1354.67,0.00019178,2]
[402141567,1768551042348,-1354.67,0.00019178,2]
[402141568,1768551042358,-1354.67,0.00019178,2]
[402141569,1768551042367,-1354.67,0.00019178,2]
[402141570,1768551042377,-1354.80968696,0.00019178,2]
[402141571,1768551042386,-151.0,0.00019178,2]
[402141572,1768551042396,-243.48264022,0.00019178,2]
[402141573,1768551042408,-1796.040967,0.00019178,2]
[402141574,1768551042418,-1796.040967,0.00019178,2]
[402141575,1768551042427,-1796.040967,0.00019178,2]
[402141576,1768551042437,-1796.040967,0.00019178,2]
[402141577,1768551042447,-1796.040967,0.00019178,2]
[402141578,1768551042456,-1796.040967,0.00019178,2]
[402141579,1768551042466,-1796.040967,0.00019178,2]
[402141580,1768551042478,-1796.040967,0.00019178,2]
[402141581,1768551042488,-641.08426854,0.00019182,48]
[402141582,1768551042498,-349.77411044,0.00019182,48]
[402141583,1768551042507,-167.99,0.000192,2]
[402141584,1768551042517,-176.42,0.000192,2]
[402141585,1768551042527,-208.52,0.000192,2]
[402141586,1768551042536,-500.0,0.00019221,2]
[402141587,1768551042545,-457.52132197,0.00019245,50]
[402141588,1768551042554,-303.10001603,0.00019278,2]
[402141589,1768551042563,-258.0,0.00019321,2]
[402141590,1768551042572,-258.0,0.00019348,2]
[402141591,1768551042581,-160.0,0.00019354,2]
[402141592,1768551042590,-254.0,0.00019358,2]
[402141593,1768551042599,-728.0,0.0001936,2]
[402141594,1768551042608,-621.35825938,0.00019362,22]
[402141595,1768551042618,-958.595753,0.00019398,7]
[402141597,1768551042627,-303.10001603,0.00019467,2]
[402141598,1768551042636,-151.0,0.000195,2]
[402141599,1768551042646,-779.0,0.000195,2]
[402141600,1768551042655,-258.0,0.00019527,2]
[402141601,1768551042664,-6959.82178558,0.00019551,2]
[402141602,1768551042674,-457.52132197,0.00019557,54]
[402141603,1768551042683,-258.0,0.0001958,2]
[402141604,1768551042694,-800.0,0.00019582,2]
[402141605,1768551042703,-258.0,0.00019582,2]
[402141606,1768551042783,-496.47127164,0.00019589,2]
[402141607,1768551042793,-2398.4119403,0.00019589,2]
[402141608,1768551042802,-800.0,0.00019594,2]
[402141609,1768551042812,-800.0,0.00019594,2]
[402141611,1768551042822,-258.0,0.00019599,2]
[402141613,1768551042831,-258.0,0.00019605,2]
[402141614,1768551042841,-198.45143648,0.00019628,2]
[402141616,1768551042850,-621.35825938,0.00019645,23]
[402141617,1768551042860,-258.0,0.0001965,2]
[402141619,1768551042869,-303.10001603,0.00019656,2]
[402141621,1768551042879,-151.0,0.00019688,2]
[402141622,1768551042888,-258.0,0.00019706,2]
[402141623,1768551042897,-800.0,0.00019723,2]
[402141624,1768551042906,-315.14029816,0.00019723,2]
[402141625,1768551042916,-800.0,0.00019748,2]
[402141627,1768551042925,-800.0,0.00019753,2]
[402141629,1768551042935,-732.0,0.00019757,2]
[402141630,1768551042944,-800.0,0.00019764,2]
[402141632,1768551042953,-116715.06023896,0.000198,2]
[402141633,1768551042962,-1796.040967,0.000198,2]
[402141635,1768551042971,-1796.040967,0.000198,2]
[402141637,1768551042980,-1796.040967,0.000198,2]
[402141638,1768551042990,-1796.040967,0.000198,2]
[402141639,1768551042999,-641.08426854,0.00019812,56]
[402141640,1768551043008,-349.77411044,0.00019812,56]
[402141641,1768551043017,-152.50710732,0.00019812,56]
[402141642,1768551043027,-728.0,0.00019816,2]
[402141643,1768551043035,-454.65002405,0.00019845,4]
[402141644,1768551043045,-457.52132197,0.00019868,57]
[402141645,1768551043054,-258.0,0.00019875,2]
[402141646,1768551043063,-2406.28854,0.00019885,7]
[402141647,1768551043072,-3076.65269276,0.000199,2]
[402141648,1768551043081,-1581.731909,0.000199,5]
[402141649,1768551043090,-1000.0,0.0001992,5]
[402141650,1768551043099,-621.35825938,0.00019928,25]
[402141651,1768551043108,-1000.0,0.0001994,5]
[402141652,1768551043117,-3000.0,0.0001995,7]
[402141653,1768551043126,-500.0,0.0001995,2]
[402141654,1768551043135,-377935.13326311,0.0001995,2]
[402141660,1768551045304,-3e-08,0.0001644,2]
[402141667,1768551046282,-184.58999997,0.0001644,2]
[402141668,1768551046292,-178.28665532,0.0001644,2]
[402141670,1768551046858,-6.30334468,0.0001644,2]
[402141671,1768551046869,-184.59,0.0001644,2]
[402141672,1768551046879,-1074.60402665,0.0001995,2]
[402141673,1768551068848,-268.12,9.929e-05,2]
[402141678,1768551131612,261.3,7.738e-05,2]
[402141679,1768551131761,391.94,8.383e-05,2]
[402141680,1768551134237,-500.0,9.027e-05,2]
[402141681,1768551138448,-22.59,9.027e-05,2]
[402141682,1768551138471,-477.41,9.672e-05,2]
[402141683,1768551142645,-175.83,9.672e-05,2]
[402141684,1768551143237,-751.0126432,0.00010317,2]
[402141686,1768551208354,216.85,6.678e-05,2]
[402141687,1768551208747,325.28,7.234e-05,2]
[402141688,1768551209153,433.7,7.791e-05,2]
[402141689,1768551209548,542.13,8.347e-05,2]
[402141690,1768551209950,650.55,8.904e-05,2]
[402141691,1768551214885,-296.91157198,9.46e-05,2]
[402141692,1768551216483,-310.26600713,9.46e-05,2]
[402141693,1768551222630,-151.80242089,9.46e-05,2]
[402141694,1768551222653,-328.09544869,0.00010017,2]
[402141695,1768551225304,-334.78082678,0.00010017,2]
[402141696,1768551250427,-204.52372453,0.00010017,2]
[402141697,1768551250452,-170.43281735,0.00010573,2]
[402141698,1768551253259,-259.93105029,0.00010573,2]
[402141699,1768551256023,-331.48209646,0.00010573,2]
[402141700,1768551257728,-173.51716562,0.00010573,2]
[402141701,1768551276743,-40.46687028,0.00010573,2]
[402141702,1768551276780,-1084.25,0.0001113,2]
[402141703,1768551276815,-165.37688788,0.0001117,2]
[402141704,1768551276847,-195.1447277,0.0001317,2]
[402141705,1768551276879,-500.87203547,0.00013273,2]
[402141706,1768551276912,-500.0,0.00013273,2]
[402141707,1768551276949,-506.52988688,0.00013273,2]
[402141708,1768551276984,-501.08403371,0.00013273,2]
[402141709,1768551277016,-500.18311244,0.00013273,2]
[402141710,1768551277205,-500.0,0.00013273,2]
[402141711,1768551277235,-504.63987932,0.00013273,2]
[402141712,1768551279617,-500.0,0.00013273,2]
[402141713,1768551279647,-500.0,0.00013273,2]
[402141714,1768551279675,-500.0,0.00013698,2]
[402141715,1768551279705,-500.0,0.00013698,2]
[402141716,1768551279733,-500.0,0.00013698,2]
[402141717,1768551279761,-500.0,0.00013698,2]
[402141718,1768551279788,-217.01515767,0.00013698,2]
[402141719,1768551279816,-500.0,0.00013698,2]
[402141720,1768551285892,156.59,5.964e-05,2]
[402141721,1768551286293,313.18,6.507e-05,2]
[402141722,1768551286698,469.78,7.049e-05,2]
[402141723,1768551287138,626.37,7.591e-05,2]
[402141724,1768551287564,782.96,8.133e-05,2]
[402141725,1768551288008,217.09968466,8.676e-05,2]
[402141726,1768551289792,-722.45031534,8.676e-05,2]
[402141727,1768551289827,-1096.15,9.218e-05,2]
[402141728,1768551289864,-1252.74,9.76e-05,2]
[402141729,1768551289900,-1409.33,0.00010302,2]
[402141730,1768551296027,-1565.92,0.00010844,2]
[402141731,1768551306752,500.0,0.00013273,2]
[402141732,1768551307069,500.9653681,0.00013273,2]
[402141733,1768551307247,500.0,0.00013273,2]
[402141734,1768551307575,500.0,0.00013273,2]
[402141735,1768551361729,221.62,6.079e-05,2]
[402141736,1768551362173,443.25,6.631e-05,2]
[402141737,1768551364637,664.87,7.184e-05,2]
[402141738,1768551365091,886.5,7.737e-05,2]
[402141739,1768551365481,1108.12,8.289e-05,2]
[402141741,1768551368023,500.0,0.00013273,2]
[402141742,1768551369319,1042.8446319,8.842e-05,2]
[402141743,1768551372470,-286.8953681,8.842e-05,2]
[402141744,1768551372507,-1551.37,9.395e-05,2]
[402141745,1768551372539,-1772.99,9.947e-05,2]
[402141746,1768551372574,-782.8792638,0.000105,2]
[402141747,1768551376427,-317.98085139,0.000105,2]
[402141748,1768551377930,-260.75810347,0.000105,2]
[402141749,1768551380619,-340.27734342,0.000105,2]
[402141750,1768551381659,-292.72443792,0.000105,2]
[402141751,1768551381691,-2216.24,0.00011052,2]
[402141752,1768551416107,250.0,0.00011366,2]
[402141753,1768551416310,250.0,0.00012982,2]
[402141754,1768551425769,500.0,0.00013273,2]
[402141755,1768551426334,500.0,0.00013273,2]